fUSD/lending_fUSD_20250814
["ID","MTS","AMOUNT","RATE_DAILY","PERIOD"]
[379101107,1755139843636,-150.0,0.00018905,2]
[379101109,1755139843646,-150.0,0.00018905,2]
[379101111,1755139843656,-150.0,0.00018905,2]
[379101113,1755139843666,-150.0,0.00018905,2]
[379101115,1755139843676,-170.79157393,0.00018905,2]
[379101117,1755139843685,-500.0,0.00018905,2]
[379101120,1755139843695,-150.0,0.00018905,2]
[379101122,1755139843705,-150.0,0.00018905,2]
[379101124,1755139843714,-500.0,0.00018905,2]
[379101126,1755139843723,-500.0,0.00018937,2]
[379101128,1755139843732,-151.0,0.00018946,2]
[379101130,1755139843742,-151.0,0.00018954,2]
[379101132,1755139843752,-200.14727118,0.00018989,2]
[379101134,1755139843761,-2413.553306,0.0001899,2]
[379101136,1755139843771,-2413.553306,0.0001899,2]
[379101138,1755139843781,-151.0,0.0001899,2]
[379101140,1755139843791,-222.0785683,0.0001899,2]
[379101142,1755139843801,-200.14727118,0.0001899,2]
[379101144,1755139843810,-200.14727118,0.0001899,2]
[379101146,1755139843820,-500.0,0.00018992,2]
[379101148,1755139843830,-1004.15269965,0.00018999,2]
[379101150,1755139843839,-1000.0,0.00018999,2]
[379101152,1755139843848,-221507.8072237,0.00018999,2]
[379101154,1755139843858,-1000.0,0.00018999,2]
[379101156,1755139843867,-1000.0,0.00018999,2]
[379101158,1755139843877,-300.0,0.00018999,2]
[379101160,1755139843887,-300.0,0.00018999,2]
[379101162,1755139843898,-300.0,0.00018999,2]
[379101164,1755139843907,-3199276.07267623,0.00019,2]
[379101221,1755139844913,-2085257.17076888,0.00019,2]
[379101223,1755139845008,-12700.57811002,0.00019,2]
[379101226,1755139845712,-291.75713149,0.00018795,2]
[379101227,1755139845724,-500.0,0.00018795,2]
[379101228,1755139845734,-298.87141686,0.00018795,2]
[379101229,1755139845743,-440.88449797,0.00018795,2]
[379101230,1755139845753,-2732251.29498338,0.00019,2]
[379101231,1755139845768,-107088.18830715,0.00019,2]
[379101232,1755139845793,-10787.03856611,0.00019,2]
[379101233,1755139845805,-9854.6193945,0.00019,2]
[379101234,1755139845842,-52963.44165689,0.00019,2]
[379101248,1755139847230,-123245.7827068,0.00019,2]
[379101249,1755139847248,-5687.6034435,0.00019,2]
[379101250,1755139847260,-7331.13682533,0.00019,2]
[379101251,1755139847292,-3623.801544,0.00019,2]
[379101252,1755139847320,-2290.19549067,0.00019,2]
[379101253,1755139847334,-2626.6616255,0.00019,2]
[379101254,1755139847393,-74.99404081,0.00019,2]
[379101255,1755139848410,-692.46060942,0.00019,2]
[379101256,1755139848439,-1321.3999809,0.00019,2]
[379101257,1755139848454,-4890.29152981,0.00019,2]
[379101258,1755139848470,-1233.7351,0.00019,2]
[379101259,1755139848499,-62389.68750014,0.00019,2]
[379101260,1755139848707,-180.16794752,0.00019,2]
[379101261,1755139856900,155.0,0.00021,3]
[379101262,1755139859022,155.0,0.00021,3]
[379101263,1755139869345,155.0,0.00021,3]
[379101264,1755139875601,155.0,0.00021,4]
[379101265,1755139879609,155.0,0.00021,4]
[379101266,1755139885990,155.0,0.00021,4]
[379101267,1755139889196,155.0,0.00021,3]
[379101269,1755139975375,1141.0,0.00021,3]
[379101271,1755140107034,3545.0,0.00025,30]
[379101272,1755140156887,-150.0,0.00018246,2]
[379101273,1755140156911,-150.0,0.00018564,2]
[379101274,1755140156936,-1000.0,0.0001863,2]
[379101275,1755140156959,-503.02016739,0.00018673,2]
[379101276,1755140156982,-500.0,0.00018673,2]
[379101277,1755140157005,-1200.0,0.00018682,2]
[379101278,1755140157030,-850.0,0.00018682,2]
[379101279,1755140157053,-1200.0,0.00018682,2]
[379101280,1755140157076,-300.0,0.00018682,2]
[379101281,1755140157099,-1000.0,0.00018683,2]
[379101282,1755140157122,-1000.0,0.00018683,2]
[379101283,1755140157145,-2500.0,0.00018683,2]
[379101284,1755140157168,-34532.0512,0.00018683,2]
[379101285,1755140157191,-95447.304,0.00018696,2]
[379101286,1755140157214,-5000.0,0.00018755,2]
[379101287,1755140157238,-9952.12,0.000188,2]
[379101288,1755140157261,-2000.0,0.00018848,2]
[379101289,1755140157285,-2000.0,0.00018854,2]
[379101290,1755140157308,-2000.0,0.00018854,2]
[379101291,1755140157330,-2000.0,0.00018854,2]
[379101292,1755140157355,-363.277,0.00018854,2]
[379101293,1755140157381,-3472.882,0.000189,2]
[379101294,1755140157407,-180.229,0.000189,2]
[379101295,1755140157432,-1489.67810568,0.000189,2]
[379101296,1755140157455,-500.0,0.00018973,2]
[379101297,1755140157479,-161.8805088,0.00018973,2]
[379101298,1755140157502,-500.0,0.00018973,2]
[379101299,1755140157524,-500.0,0.00018973,2]
[379101300,1755140157547,-500.0,0.00018973,2]
[379101301,1755140157569,-500.0,0.00018973,2]
[379101302,1755140157592,-501.5954582,0.00018973,2]
[379101303,1755140157615,-501.86921107,0.00018973,2]
[379101304,1755140157638,-500.0,0.00018973,2]
[379101305,1755140157660,-200.0,0.00018989,2]
[379101306,1755140157683,-600.0,0.00018989,2]
[379101307,1755140157706,-200.0,0.00018989,2]
[379101308,1755140157729,-200.0,0.00018989,2]
[379101309,1755140157752,-277.35679052,0.00018989,2]
[379101310,1755140157775,-200.0,0.00018989,2]
[379101311,1755140157797,-151.0,0.00018989,2]
[379101312,1755140157821,-200.0,0.00018989,2]
[379101313,1755140157843,-200.0,0.00018989,2]
[379101314,1755140157865,-200.0,0.00018989,2]
[379101315,1755140157888,-200.0,0.00018989,2]
[379101316,1755140157910,-200.0,0.00018989,2]
[379101317,1755140157932,-531.7070915,0.00018989,2]
[379101318,1755140157954,-200.0,0.00018989,2]
[379101319,1755140157977,-200.0,0.00018989,2]
[379101320,1755140157999,-200.0,0.00018989,2]
[379101321,1755140158024,-160.0,0.00018989,2]
[379101322,1755140158046,-200.0,0.00018989,2]
[379101323,1755140158069,-200.0,0.00018989,2]
[379101324,1755140158092,-200.0,0.00018989,2]
[379101325,1755140158114,-200.0,0.00018989,2]
[379101326,1755140158136,-200.0,0.00018989,2]
[379101327,1755140158157,-1386.78395259,0.00018989,2]
[379101328,1755140158179,-200.0,0.00018989,2]
[379101329,1755140158202,-200.0,0.00018989,2]
[379101330,1755140158224,-200.0,0.00018989,2]
[379101331,1755140158248,-151.0,0.00018989,2]
[379101332,1755140158269,-200.0,0.00018989,2]
[379101333,1755140158292,-151.0,0.00018989,2]
[379101334,1755140158314,-300.0,0.00018989,2]
[379101335,1755140158338,-151.0,0.00018989,2]
[379101336,1755140158362,-151.0,0.00018989,2]
[379101337,1755140158391,-151.0,0.00018989,2]
[379101338,1755140158781,-151.0,0.00018989,2]
[379101339,1755140158806,-151.0,0.00018989,2]
[379101340,1755140158831,-151.0,0.00018989,2]
[379101341,1755140158859,-151.0,0.00018989,2]
[379101342,1755140158884,-151.0,0.00018989,2]
[379101343,1755140158907,-151.0,0.00018989,2]
[379101344,1755140158930,-150.0,0.00018999,2]
[379101345,1755140158953,-500.0,0.00018999,2]
[379101346,1755140158976,-440.88449797,0.00018999,2]
[379101347,1755140158998,-204.22999204,0.00018999,2]
[379101348,1755140159021,-298.87141686,0.00018999,2]
[379101349,1755140159044,-2634267.31293943,0.00019,2]
[379101350,1755140159067,-16129.26179653,0.00019,2]
[379101351,1755140159092,-5060.9126068,0.00019,2]
[379101352,1755140159116,-180.97143887,0.00019,2]
[379101353,1755140159140,-151.0,0.00019,2]
[379101354,1755140159165,-151.0,0.00019,2]
[379101355,1755140159192,-151.0,0.00019,2]
[379101356,1755140159218,-158.303146,0.00019,2]
[379101357,1755140159243,-353.975084,0.00019,2]
[379101358,1755140159269,-353.975084,0.00019,2]
[379101359,1755140159294,-353.975084,0.00019,2]
[379101360,1755140159318,-151.0,0.00019,2]
[379101361,1755140159341,-353.975084,0.00019,2]
[379101362,1755140159365,-151.0,0.00019,2]
[379101363,1755140159390,-151.0,0.00019,2]
[379101364,1755140159420,-151.0,0.00019,2]
[379101365,1755140159446,-151.0,0.00019,2]
[379101366,1755140159472,-151.0,0.00019,2]
[379101367,1755140159494,-225.213437,0.00019,2]
[379101368,1755140159517,-225.213437,0.00019,2]
[379101369,1755140159540,-225.213437,0.00019,2]
[379101370,1755140159564,-225.213437,0.00019,2]
[379101371,1755140159587,-225.213437,0.00019,2]
[379101372,1755140159611,-225.213437,0.00019,2]
[379101373,1755140159635,-151.0,0.00019,2]
[379101374,1755140159659,-151.0,0.00019,2]
[379101375,1755140159681,-151.0,0.00019,2]
[379101376,1755140159704,-151.0,0.00019,2]
[379101377,1755140159728,-151.0,0.00019,2]
[379101378,1755140159751,-151.0,0.00019,2]
[379101379,1755140159775,-233.465756,0.00019,2]
[379101380,1755140159799,-233.465756,0.00019,2]
[379101381,1755140159823,-233.465756,0.00019,2]
[379101382,1755140159856,-233.465756,0.00019,2]
[379101383,1755140159886,-233.465756,0.00019,2]
[379101384,1755140159910,-233.465756,0.00019,2]
[379101385,1755140159936,-151.0,0.00019,2]
[379101386,1755140159962,-274.923631,0.00019,2]
[379101387,1755140159987,-1577.91127,0.00019,2]
[379101388,1755140160014,-1577.91127,0.00019,2]
[379101389,1755140160042,-1577.91127,0.00019,2]
[379101390,1755140160067,-1577.91127,0.00019,2]
[379101391,1755140160092,-1577.91127,0.00019,2]
[379101392,1755140160118,-1577.91127,0.00019,2]
[379101393,1755140160144,-1092.95197,0.00019,2]
[379101394,1755140160170,-1092.95197,0.00019,2]
[379101395,1755140160195,-1092.95197,0.00019,2]
[379101396,1755140160221,-370410.66874063,0.00019,2]
[379101397,1755140160246,-1092.95197,0.00019,2]
[379101398,1755140160270,-1092.95197,0.00019,2]
[379101399,1755140160294,-1092.95197,0.00019,2]
[379101400,1755140160319,-151.806602,0.00019,2]
[379101401,1755140160345,-216.019948,0.00019,2]
[379101402,1755140160370,-216.019948,0.00019,2]
[379101403,1755140160402,-216.019948,0.00019,2]
[379101404,1755140160427,-216.019948,0.00019,2]
[379101405,1755140160452,-216.019948,0.00019,2]
[379101406,1755140160477,-216.019948,0.00019,2]
[379101407,1755140160504,-192.089939,0.00019,2]
[379101408,1755140160528,-192.089939,0.00019,2]
[379101409,1755140160553,-192.089939,0.00019,2]
[379101410,1755140160578,-192.089939,0.00019,2]
[379101411,1755140160604,-192.089939,0.00019,2]
[379101412,1755140160629,-192.089939,0.00019,2]
[379101413,1755140160654,-1172.612991,0.00019,2]
[379101414,1755140160680,-1172.612991,0.00019,2]
[379101415,1755140160705,-1172.612991,0.00019,2]
[379101416,1755140160731,-1172.612991,0.00019,2]
[379101417,1755140160756,-1172.612991,0.00019,2]
[379101418,1755140160780,-1172.612991,0.00019,2]
[379101419,1755140160806,-151.0,0.00019,2]
[379101420,1755140160831,-151.0,0.00019,2]
[379101421,1755140160858,-151.0,0.00019,2]
[379101422,1755140160883,-261.615533,0.00019,2]
[379101423,1755140160907,-625.993034,0.00019,2]
[379101424,1755140160935,-625.993034,0.00019,2]
[379101425,1755140160960,-625.993034,0.00019,2]
[379101426,1755140160987,-625.993034,0.00019,2]
[379101427,1755140161013,-625.993034,0.00019,2]
[379101428,1755140161038,-625.993034,0.00019,2]
[379101429,1755140161064,-259.330461,0.00019,2]
[379101430,1755140161089,-259.330461,0.00019,2]
[379101431,1755140161116,-259.330461,0.00019,2]
[379101432,1755140161142,-259.330461,0.00019,2]
[379101433,1755140161167,-259.330461,0.00019,2]
[379101434,1755140161192,-259.330461,0.00019,2]
[379101435,1755140161218,-2413.553306,0.00019,2]
[379101436,1755140161246,-2413.553306,0.00019,2]
[379101437,1755140161271,-2413.553306,0.00019,2]
[379101438,1755140161297,-2413.553306,0.00019,2]
[379101439,1755140161330,-2413.553306,0.00019,2]
[379101440,1755140161355,-2413.553305,0.00019,2]
[379101441,1755140161380,-151.0,0.00019,2]
[379101442,1755140161407,-151.0,0.00019,2]
[379101443,1755140161432,-151.0,0.00019,2]
[379101444,1755140161460,-3162.80491708,0.00019,2]
[379101445,1755140167185,150.0,0.00025,30]
[379101446,1755140181995,240.97,0.00018,2]
[379101447,1755140185665,-1000.0,0.000189,2]
[379101448,1755140185697,-1000.0,0.000189,2]
[379101449,1755140185723,-246.0,0.00018999,2]
[379101450,1755140185747,-792.60642935,0.00019,2]
[379101451,1755140185771,-151.0,0.00019,2]
[379101452,1755140185795,-151.0,0.00019,2]
[379101453,1755140185819,-169.871644,0.00019,2]
[379101454,1755140185842,-215.746212,0.00019,2]
[379101455,1755140185865,-151.0,0.00019,2]
[379101456,1755140185892,-151.0,0.00019,2]
[379101457,1755140185920,-151.0,0.00019,2]
[379101458,1755140185946,-219.744119,0.00019,2]
[379101459,1755140185971,-219.744119,0.00019,2]
[379101460,1755140185996,-352.975272,0.00019,2]
[379101461,1755140186020,-352.975272,0.00019,2]
[379101462,1755140186044,-151.0,0.00019,2]
[379101463,1755140186067,-255.171492,0.00019,2]
[379101464,1755140186088,-255.171492,0.00019,2]
[379101465,1755140186109,-260.798654,0.00019,2]
[379101466,1755140186135,-260.798654,0.00019,2]
[379101467,1755140186158,-5398.48608,0.00019,2]
[379101468,1755140186181,-151.0,0.00019,2]
[379101469,1755140186204,-171.237155,0.00019,2]
[379101470,1755140186227,-171.237155,0.00019,2]
[379101471,1755140186250,-151.0,0.00019,2]
[379101472,1755140186273,-164.056336,0.00019,2]
[379101473,1755140186297,-1396.880114,0.00019,2]
[379101474,1755140186319,-1396.880114,0.00019,2]
[379101475,1755140186342,-437.051332,0.00019,2]
[379101476,1755140186364,-437.051332,0.00019,2]
[379101477,1755140186389,-150.0,0.00019,2]
[379101478,1755140186415,-150.0,0.00019,2]
[379101479,1755140186439,-500.0,0.00019,2]
[379101480,1755140186465,-447.0,0.00019,2]
[379101481,1755140186488,-150.0,0.00019,2]
[379101482,1755140186510,-203.40199757,0.00019,2]
[379101483,1755140186533,-150.0,0.00019,2]
[379101484,1755140186556,-150.0,0.00019,2]
[379101485,1755140186579,-500.0,0.00019,2]
[379101486,1755140186602,-150.0,0.00019,2]
[379101487,1755140186628,-164645.2511877,0.00019,2]
[379101494,1755140395032,611.93,0.00025,30]
[379101495,1755140438033,155.0,0.00021,3]
[379101496,1755140452574,155.0,0.00021,4]
[379101497,1755140464980,156.77,0.00021,5]
[379101498,1755140505868,30000.0,0.0002,7]
[379101499,1755140532131,685.94,0.0002,4]
[379101501,1755140673377,461.0,0.000249,120]
[379101502,1755140714782,181.1,0.00014563,2]
[379101503,1755140728159,-191.38371435,0.00018301,2]
[379101504,1755140728186,-9.92074158,0.00018301,2]
[379101505,1755140745271,-151.07,0.00018311,2]
[379101506,1755140745311,-97.86,0.00018396,2]
[379101507,1755140762666,-187.12792433,0.00018401,2]
[379101508,1755140762696,-250.0,0.00018404,2]
[379101509,1755140762755,-103.07301106,0.00018496,2]
[379101511,1755140779774,-155.82825246,0.00018304,2]
[379101512,1755140782553,203.63,0.00013699,2]
[379101513,1755140798061,-12.85620345,0.00018304,2]
[379101514,1755140798089,-168.68445591,0.00018356,2]
[379101515,1755140798116,-168.68445591,0.00018407,2]
[379101516,1755140798526,-913.738547,0.00018496,2]
[379101517,1755140799826,-2334.86844194,0.00018496,2]
[379101518,1755140799848,-200.0,0.00018507,2]
[379101519,1755140799871,-2751.0,0.00018516,2]
[379101520,1755140799894,-1200.0,0.00018809,2]
[379101521,1755140799915,-1074.0695,0.0001881,2]
[379101522,1755140799936,-300.0,0.00018847,2]
[379101523,1755140799957,-203.0,0.00018847,2]
[379101524,1755140799978,-2000.0,0.00018848,2]
[379101525,1755140800001,-1000.0,0.00018888,2]
[379101526,1755140800022,-5000.0,0.000189,2]
[379101527,1755140800043,-2500.0,0.000189,2]
[379101528,1755140800064,-1000.0,0.000189,2]
[379101529,1755140800087,-2778.305,0.00018905,2]
[379101530,1755140800109,-180.229,0.00018905,2]
[379101531,1755140800130,-277.35679052,0.00018997,2]
[379101532,1755140800152,-164.5620506,0.00018999,2]
[379101533,1755140800176,-6754.58335,0.00018999,2]
[379101534,1755140800199,-54018.7466263,0.00018999,2]
[379101535,1755140800222,-1485.60423,0.00019,2]
[379101536,1755140800242,-229.697885,0.00019,2]
[379101537,1755140800263,-229.697885,0.00019,2]
[379101538,1755140800285,-522.420924,0.00019,2]
[379101539,1755140800308,-522.420924,0.00019,2]
[379101540,1755140800332,-151.0,0.00019,2]
[379101541,1755140800354,-151.0,0.00019,2]
[379101542,1755140800376,-151.0,0.00019,2]
[379101543,1755140800396,-151.0,0.00019,2]
[379101544,1755140800420,-4498.7384,0.00019,2]
[379101545,1755140800443,-151.0,0.00019,2]
[379101546,1755140800463,-150.0,0.00019,2]
[379101547,1755140800486,-1000.0,0.00019,2]
[379101548,1755140800507,-151.0,0.00019,2]
[379101549,1755140801840,210.94287774,0.00019,2]
[379101550,1755140834100,277.35679052,0.00018889,2]
[379101551,1755140836154,-168.0,0.00019,2]
[379101552,1755140836174,-1762.02416054,0.00019087,2]
[379101561,1755140946334,-250.0,0.00018555,2]
[379101562,1755140946860,-180.55,0.00018573,2]
[379101563,1755140946880,-3769.19470326,0.00019087,2]
[379101564,1755140946901,-150.99,0.000191,2]
[379101565,1755140946922,-1000.0,0.000191,2]
[379101566,1755140946943,-200.0,0.00019144,2]
[379101567,1755140946963,-1386.78395259,0.00019144,2]
[379101568,1755140946983,-200.0,0.00019144,2]
[379101569,1755140947002,-216.6538224,0.00019144,2]
[379101570,1755140947022,-160.0,0.00019144,2]
[379101571,1755140947043,-151.0,0.00019144,2]
[379101572,1755140947062,-151.0,0.00019144,2]
[379101573,1755140947083,-151.0,0.00019144,2]
[379101574,1755140947102,-600.0,0.00019144,2]
[379101575,1755140947123,-300.0,0.00019144,2]
[379101576,1755140947143,-151.0,0.00019144,2]
[379101577,1755140947165,-168.0,0.00019156,2]
[379101578,1755140947184,-294.26,0.00019156,2]
[379101579,1755140947204,-937.09,0.00019156,2]
[379101580,1755140947224,-150.99,0.00019156,2]
[379101581,1755140947244,-8449.54,0.00019156,2]
[379101582,1755140947263,-151.9227341,0.0001917,2]
[379101583,1755140947283,-12149.89,0.00019178,2]
[379101584,1755140947302,-1000.0,0.000192,2]
[379101585,1755140947322,-8753.59,0.000192,2]
[379101586,1755140947342,-9999.99,0.000192,2]
[379101587,1755140947361,-1074.0695,0.0001926,2]
[379101588,1755140947383,-168.0,0.00019272,2]
[379101589,1755140947402,-150.0,0.00019274,2]
[379101590,1755140947422,-500.0,0.00019274,2]
[379101591,1755140947444,-168.0,0.00019288,2]
[379101592,1755140947464,-150.0,0.00019327,2]
[379101593,1755140947484,-150.0,0.00019327,2]
[379101594,1755140947504,-150.0,0.00019327,2]
[379101595,1755140947523,-500.0,0.00019327,2]
[379101596,1755140947544,-150.0,0.00019327,2]
[379101597,1755140947564,-150.0,0.00019327,2]
[379101598,1755140947585,-500.0,0.00019327,2]
[379101599,1755140947605,-227.05885437,0.00019327,2]
[379101600,1755140947624,-150.0,0.00019338,2]
[379101601,1755140947645,-150.0,0.00019338,2]
[379101602,1755140947665,-150.0,0.00019338,2]
[379101603,1755140947685,-151.0,0.00019339,2]
[379101604,1755140947707,-151.0,0.00019339,2]
[379101605,1755140947729,-263.836665,0.00019339,2]
[379101606,1755140947748,-263.836665,0.00019339,2]
[379101607,1755140947767,-156.741538,0.00019339,2]
[379101608,1755140947787,-214.397328,0.00019339,2]
[379101609,1755140947807,-214.397328,0.00019339,2]
[379101610,1755140947826,-151.0,0.00019339,2]
[379101611,1755140947846,-205.065078,0.00019339,2]
[379101612,1755140947865,-205.065078,0.00019339,2]
[379101613,1755140947885,-151.0,0.00019339,2]
[379101614,1755140947904,-151.39142,0.00019339,2]
[379101615,1755140947924,-151.0,0.00019339,2]
[379101616,1755140947943,-151.0,0.00019339,2]
[379101617,1755140947962,-198.432317,0.00019339,2]
[379101618,1755140947981,-198.432317,0.00019339,2]
[379101619,1755140948002,-151.0,0.00019339,2]
[379101620,1755140948022,-219.744119,0.00019339,2]
[379101621,1755140948042,-219.744119,0.00019339,2]
[379101622,1755140948061,-151.0,0.00019339,2]
[379101623,1755140948080,-623.632297,0.00019339,2]
[379101624,1755140948098,-151.0,0.00019339,2]
[379101625,1755140948117,-623.632297,0.00019339,2]
[379101626,1755140948137,-504.520265,0.00019339,2]
[379101627,1755140948157,-504.520265,0.00019339,2]
[379101628,1755140948177,-255.171492,0.00019339,2]
[379101629,1755140948197,-255.171492,0.00019339,2]
[379101630,1755140948217,-151.0,0.00019339,2]
[379101631,1755140948236,-151.0,0.00019339,2]
[379101632,1755140948255,-171.237155,0.00019339,2]
[379101633,1755140948276,-171.237155,0.00019339,2]
[379101634,1755140948297,-1396.880114,0.00019339,2]
[379101635,1755140948317,-1396.880114,0.00019339,2]
[379101636,1755140948337,-2013.703179,0.00019339,2]
[379101637,1755140948356,-2013.703179,0.00019339,2]
[379101638,1755140948376,-150.0,0.00019339,2]
[379101639,1755140948396,-150.0,0.00019339,2]
[379101640,1755140948418,-204.4011667,0.00019339,2]
[379101641,1755140948438,-153.7722139,0.00019339,2]
[379101642,1755140948457,-1015.68889516,0.000194,2]
[379101643,1755140948477,-260.798654,0.00019421,2]
[379101644,1755140948497,-260.798654,0.00019421,2]
[379101645,1755140948517,-522.420924,0.00019421,2]
[379101646,1755140948540,-522.420924,0.00019421,2]
[379101647,1755140948565,-151.0,0.00019421,2]
[379101648,1755140948585,-151.0,0.00019421,2]
[379101649,1755140948606,-294.86232,0.00019421,2]
[379101650,1755140948625,-151.0,0.00019421,2]
[379101651,1755140948645,-151.0,0.00019421,2]
[379101652,1755140948665,-192.089939,0.00019453,2]
[379101653,1755140948684,-192.089939,0.00019453,2]
[379101654,1755140948704,-625.993034,0.00019453,2]
[379101655,1755140948724,-625.993034,0.00019453,2]
[379101656,1755140948745,-167.776839,0.00019453,2]
[379101657,1755140948765,-167.776839,0.00019453,2]
[379101658,1755140948786,-1000.0,0.00019507,2]
[379101659,1755140948807,-1000.0,0.00019507,2]
[379101660,1755140948827,-2500.0,0.00019507,2]
[379101661,1755140948850,-1172.612991,0.00019521,2]
[379101662,1755140948870,-1172.612991,0.00019521,2]
[379101663,1755140948891,-259.330461,0.00019521,2]
[379101664,1755140948913,-259.330461,0.00019521,2]
[379101665,1755140948934,-151.0,0.00019521,2]
[379101666,1755140948954,-151.0,0.00019521,2]
[379101667,1755140948974,-151.0,0.00019521,2]
[379101668,1755140948995,-352.975272,0.00019521,2]
[379101669,1755140949014,-352.975272,0.00019521,2]
[379101670,1755140949037,-150.0,0.00019548,2]
[379101671,1755140949060,-500.0,0.00019548,2]
[379101672,1755140949081,-151.0,0.00019583,2]
[379101673,1755140949103,-168.0,0.00019585,2]
[379101674,1755140949124,-259.24293172,0.00019601,2]
[379101675,1755140949145,-150.0,0.00019601,2]
[379101676,1755140949166,-191.43726989,0.00019601,2]
[379101677,1755140949187,-500.0,0.00019601,2]
[379101678,1755140949209,-284.54607827,0.00019601,2]
[379101679,1755140949231,-500.0,0.00019601,2]
[379101680,1755140949252,-151.0,0.00019607,2]
[379101681,1755140949272,-151.0,0.00019607,2]
[379101682,1755140949292,-437.051332,0.00019607,2]
[379101683,1755140949312,-437.051332,0.00019607,2]
[379101684,1755140949332,-229.697885,0.00019607,2]
[379101685,1755140949352,-229.697885,0.00019607,2]
[379101686,1755140949374,-150.0,0.00019612,2]
[379101687,1755140949397,-150.0,0.00019612,2]
[379101688,1755140949417,-150.0,0.00019612,2]
[379101689,1755140949437,-220.16150683,0.00019613,2]
[379101690,1755140949458,-150.0,0.00019613,2]
[379101691,1755140949477,-500.0,0.00019673,2]
[379101692,1755140949498,-500.0,0.00019673,2]
[379101693,1755140949517,-500.0,0.00019673,2]
[379101694,1755140949538,-500.0,0.00019673,2]
[379101695,1755140949557,-500.0,0.00019673,2]
[379101696,1755140949593,-500.0,0.00019673,2]
[379101697,1755140949632,-500.0,0.00019673,2]
[379101698,1755140949673,-4115.8154,0.00019684,2]
[379101699,1755140949716,-168.0,0.00019685,2]
[379101700,1755140949757,-600.0,0.00019692,2]
[379101701,1755140949797,-151.0,0.00019692,2]
[379101702,1755140949823,-1000.0,0.00019699,2]
[379101703,1755140949843,-152.206171,0.00019727,2]
[379101704,1755140949863,-299.552406,0.00019727,2]
[379101705,1755140949884,-299.552406,0.00019727,2]
[379101706,1755140949904,-151.0,0.00019727,2]
[379101707,1755140949923,-329.622478,0.00019727,2]
[379101708,1755140949942,-329.622478,0.00019727,2]
[379101709,1755140949962,-755.606901,0.00019727,2]
[379101710,1755140949981,-755.606901,0.00019727,2]
[379101711,1755140950001,-151.0,0.00019727,2]
[379101712,1755140950021,-1062.471198,0.00019727,2]
[379101713,1755140950041,-1062.471198,0.00019727,2]
[379101714,1755140950061,-1074.0695,0.0001976,2]
[379101715,1755140950081,-501.1363649,0.00019773,2]
[379101716,1755140950103,-501.92440789,0.00019773,2]
[379101717,1755140950123,-634.27910804,0.00019773,2]
[379101718,1755140950144,-500.0,0.00019773,2]
[379101719,1755140950422,-500.0,0.00019773,2]
[379101720,1755140950443,-500.0,0.00019773,2]
[379101721,1755140950462,-505.64091826,0.00019773,2]
[379101722,1755140950500,-500.0,0.00019773,2]
[379101723,1755140950538,-500.0,0.00019773,2]
[379101724,1755140950576,-500.0,0.00019773,2]
[379101725,1755140950611,-500.0,0.00019773,2]